bitfinex-derivatives/quotes_ETHF0:USTF0_20251119
["timestamp","ask_amount","ask_price","bid_price","bid_amount"]
[1763559241952,0.53335286,3087.4,3087.3,0.2459]
[1763559242155,0.00826286,3087.4,3087.0,0.38422405]
[1763559242357,0.52514,3087.1,3087.0,0.13832405]
[1763559242562,0.52514,3087.1,3087.0,0.38422405]
[1763559243060,0.00826286,3087.4,3087.3,0.52511]
[1763559243259,0.00826286,3087.4,3087.3,0.77101]
[1763559243462,0.53335286,3087.4,3087.3,0.2459]
[1763559243864,0.53335286,3087.4,3087.3,0.77101]
[1763559244168,0.00826286,3087.4,3087.3,0.77101]
[1763559244363,0.53335286,3087.4,3087.3,0.2459]
[1763559244564,0.52514,3087.1,3087.0,0.13832405]
[1763559244767,0.52514,3087.1,3087.0,0.38422405]
[1763559244965,0.53337286,3087.4,3087.3,0.2459]
[1763559245360,0.00826286,3087.4,3087.3,0.77101]
[1763559245565,0.53335286,3087.4,3087.3,0.77101]
[1763559245966,0.00826286,3087.4,3087.3,0.77101]
[1763559246268,0.53335286,3087.4,3087.3,0.2459]
[1763559246469,0.53335286,3087.4,3087.3,0.77101]
[1763559246666,0.00826286,3087.4,3087.3,0.77101]
[1763559246971,0.53335286,3087.4,3087.3,0.2459]
[1763559247162,0.53335286,3087.4,3087.3,0.77101]
[1763559247163,0.00826286,3087.4,3087.3,0.77101]
[1763559247667,0.53335286,3087.4,3087.3,0.77101]
[1763559250068,0.53335286,3087.4,3087.3,0.2459]
[1763559250568,0.53335286,3087.4,3087.3,0.77101]
[1763559251073,0.53335286,3087.4,3087.3,0.2459]
[1763559251260,0.52514,3087.1,3087.0,0.13832405]
[1763559252763,0.00826286,3087.4,3087.3,0.2459]
[1763559252971,0.00826286,3087.4,3087.1,0.52513]
[1763559253171,0.52513,3087.2,3087.1,0.77103]
[1763559253364,0.52513,3087.2,3087.0,0.00332405]
[1763559253365,0.52514,3087.1,3087.0,0.00332405]
[1763559253766,0.52514,3087.1,3087.0,0.14632405]
[1763559255269,0.52514,3087.1,3087.0,0.39222405]
[1763559256067,0.52514,3087.1,3087.0,0.14632405]
[1763559256571,0.52514,3087.1,3087.0,0.00332405]
[1763559256870,0.52514,3087.1,3087.0,0.39222405]
[1763559258870,0.52514,3087.1,3087.0,0.00332405]
[1763559259769,0.52514,3087.1,3087.0,0.14632405]
[1763559260477,0.52514,3087.1,3087.0,0.91738405]
[1763559261172,0.00826286,3087.4,3087.0,0.91738405]
[1763559261475,0.52514,3087.1,3087.0,0.91738405]
[1763559261679,0.52513,3087.2,3087.1,0.77103]
[1763559262474,0.52513,3087.2,3087.1,0.2459]
[1763559263473,0.52511,3087.3,3087.2,0.2459]
[1763559264771,0.53335286,3087.4,3087.3,0.2459]
[1763559265265,0.00340464,3087.4,3087.3,0.77101]
[1763559265467,3.73286,3087.6,3087.5,0.89848]
[1763559265670,3.73286,3087.6,3087.5,0.3734]
[1763559266581,3.73607628,3087.6,3087.5,0.3734]
[1763559266775,0.52509,3087.4,3087.3,1.15828288]
[1763559267077,0.52509,3087.4,3087.3,1.39158288]
[1763559267373,0.52508,3087.5,3087.4,0.75838]
[1763559267569,0.52508,3087.5,3087.4,0.2333]
[1763559267975,0.52508,3087.5,3087.4,0.75839]
[1763559268479,0.52509,3087.4,3087.3,1.15828288]
[1763559268779,0.52509,3087.5,3087.4,0.75839]
[1763559270280,0.52509,3087.4,3087.3,1.15828288]
[1763559270483,3.21101628,3087.6,3087.1,0.52513]
[1763559270684,0.52513,3087.2,3087.1,0.2333]
[1763559270983,0.52513,3087.2,3087.1,0.75844]
[1763559271377,0.52513,3087.2,3087.1,0.2333]
[1763559271782,0.52514,3087.1,3087.0,3.35412405]
[1763559273182,0.52514,3087.1,3087.0,3.57942405]
[1763559274170,0.52513,3087.2,3087.1,0.75044]
[1763559274376,3.21101628,3087.6,3087.2,0.2253]
[1763559274576,0.52511,3087.3,3087.2,0.2253]
[1763559274774,0.52514,3087.1,3087.0,3.35412405]
[1763559274976,0.52514,3087.1,3087.0,3.57942405]
[1763559276083,0.52514,3087.1,3087.0,4.10458405]
[1763559276689,3.21101628,3087.6,3087.0,4.10458405]
[1763559276988,0.52514,3087.1,3087.0,3.57942405]
[1763559277380,0.52514,3087.1,3087.0,4.10458405]
[1763559277582,0.52514,3087.1,3087.0,3.57942405]
[1763559278482,0.52514,3087.1,3087.0,0.14632405]
[1763559278793,0.52514,3087.1,3087.0,0.00332405]
[1763559284290,0.52523,3086.6,3086.5,0.135]
[1763559284689,0.52528,3086.3,3086.2,3.4331]
[1763559284891,0.52528,3086.3,3086.2,0.2253]
[1763559285087,0.52531,3086.1,3086.0,0.135]
[1763559285293,0.52531,3086.1,3086.0,0.36426]
[1763559285892,0.52531,3086.1,3086.0,0.13896]
[1763559286595,0.52531,3086.1,3086.0,0.00396]
[1763559289999,0.52531,3086.1,3084.9,1.15828288]
[1763559290000,0.5255,3085.0,3084.9,1.15828288]
[1763559290190,0.52557,3084.6,3084.2,3.2078]
[1763559290390,0.52557,3084.6,3084.5,0.3599]
[1763559290794,0.52555,3084.7,3084.5,0.3599]
[1763559290995,0.52949934,3084.7,3084.6,0.2253]
[1763559293794,0.52557,3084.6,3084.5,0.13791952]
[1763559293991,0.52557,3084.6,3084.5,0.36321952]
[1763559295101,0.00394934,3084.7,3084.6,0.2253]
[1763559295296,0.76009934,3084.7,3084.6,0.2253]
[1763559296399,0.00394934,3084.7,3084.6,0.75087]
[1763559297602,0.52949934,3084.7,3084.6,0.2253]
[1763559297803,0.76009934,3084.7,3084.6,0.2253]
[1763559298000,0.75617,3084.6,3084.5,0.00331952]
[1763559298607,0.75617,3084.6,3084.5,0.22861952]
[1763559298804,0.75617,3084.6,3084.5,0.36321952]
[1763559299205,0.52557,3084.6,3084.5,0.36321952]
[1763559299997,0.52557,3084.6,3084.5,0.88880952]
[1763559300410,0.52557,3084.6,3084.5,0.36321952]
[1763559300614,0.00394934,3084.7,3084.6,0.75087]
[1763559300800,3.2078,3085.5,3085.4,0.2253]
[1763559301006,0.52548,3085.1,3085.0,0.8854]
[1763559301318,0.52545,3085.4,3085.3,0.2253]
[1763559301706,0.2314,3085.1,3084.6,0.52557]
[1763559301907,0.00330557,3085.1,3084.5,3.87128952]
[1763559302214,0.52557,3084.7,3084.6,0.2469]
[1763559302409,0.52553,3084.9,3084.5,3.34571952]
[1763559302612,0.52878557,3085.1,3085.0,0.3854]
[1763559303004,0.00330557,3085.1,3085.0,0.9109]
[1763559303211,0.52878557,3085.1,3085.0,0.9109]
[1763559303409,0.52878557,3085.1,3085.0,4.1187]
[1763559303711,0.52878557,3085.1,3085.0,0.3854]
[1763559304114,0.52878557,3085.1,3085.0,0.9109]
[1763559304309,0.00330557,3085.1,3085.0,0.9109]
[1763559304615,0.00330557,3085.1,3085.0,4.1187]
[1763559307213,0.52878557,3085.1,3085.0,4.1187]
[1763559307612,0.52878557,3085.1,3085.0,3.5932]
[1763559308008,0.00330557,3085.1,3085.0,4.1187]
[1763559308207,0.52878557,3085.1,3085.0,3.5932]
[1763559308717,0.52555,3084.7,3084.6,3.4547]
[1763559308913,0.75697,3084.6,3084.5,0.00331952]
[1763559309320,0.75697,3084.6,3084.5,9.52e-06]
[1763559309525,3.2078,3084.7,3083.6,3.4547]
[1763559309526,0.5257,3083.9,3083.6,3.4547]
[1763559309812,0.52574,3083.6,3083.5,0.3815]
[1763559310419,3.2078,3083.8,3082.8,3.2078]
[1763559310613,2.07317263,3084.0,3083.3,0.2469]
[1763559310614,0.52576,3083.5,3083.3,0.2469]
[1763559310818,0.52577,3083.4,3083.3,0.2469]
[1763559311012,0.00485822,3083.6,3083.5,0.3854]
[1763559311218,0.00485822,3083.6,3083.5,0.2469]
[1763559311413,0.53059822,3083.6,3083.5,0.2469]
[1763559311615,0.00485822,3083.6,3083.2,3.21265822]
[1763559311813,0.00485822,3083.6,3083.5,0.3854]
[1763559312015,0.52576,3083.5,3083.2,3.21265822]
[1763559312214,0.52578,3083.4,3083.2,3.21265822]
[1763559312414,0.00485822,3083.6,3083.2,3.73846822]
[1763559312610,0.00485822,3083.6,3083.2,3.21265822]
[1763559312813,0.52579,3083.4,3083.2,3.21265822]
[1763559313215,0.53060822,3083.6,3083.3,0.52579]
[1763559313519,0.00485822,3083.6,3083.5,0.3854]
[1763559313722,0.00485822,3083.6,3083.2,3.21265822]
[1763559314227,0.52579,3083.3,3083.2,3.21265822]
[1763559314615,0.75719,3083.3,3083.2,3.21265822]
[1763559314818,0.75719,3083.3,3083.2,0.00485822]
[1763559315026,0.52579,3083.3,3083.2,0.25175822]
[1763559315222,0.75719,3083.3,3083.2,0.00485822]
[1763559315926,3.73357,3083.5,3083.4,0.2469]
[1763559316131,3.73357,3083.5,3083.2,0.00485822]
[1763559316132,0.2314,3083.3,3083.2,0.00485822]
[1763559316537,0.52579,3083.3,3083.2,0.25175822]
[1763559316940,0.52578,3083.4,3083.2,0.25175822]
[1763559317136,3.73356,3083.5,3083.2,0.25175822]
[1763559317329,0.52579,3083.3,3083.2,0.00485822]
[1763559317632,0.75719,3083.3,3083.2,0.00485822]
[1763559317838,2.42543764,3083.3,3083.2,0.00485822]
[1763559318232,0.75726,3082.9,3082.8,0.00403665]
[1763559318438,0.2314,3081.6,3080.8,0.52622]
[1763559318638,1.66824764,3081.6,3081.2,0.2469]
[1763559318836,0.52615,3081.2,3080.9,0.5262]
[1763559319033,0.52616,3081.2,3080.7,0.52623]
[1763559319239,3.21266626,3081.3,3080.6,0.00486626]
[1763559319437,0.00486626,3081.3,3081.2,0.2469]
[1763559319737,0.52618,3081.1,3080.6,0.53356337]
[1763559319934,3.21266626,3081.3,3080.6,0.00731337]
[1763559320239,1.66824764,3080.7,3079.7,0.15118288]
[1763559320442,6.00486626,3081.3,3079.5,0.1385]
[1763559320443,3.2078,3079.8,3079.5,0.1385]
[1763559320647,3.2078,3079.8,3079.5,2.56390396]
[1763559320838,3.2078,3079.8,3079.5,2.55690396]
[1763559321039,3.2078,3079.8,3079.6,0.52641]
[1763559321340,3.21013527,3079.8,3079.7,2.42540396]
[1763559321650,3.21013527,3079.8,3079.6,1.74107647]
[1763559321943,3.21013527,3079.8,3079.6,2.42905611]
[1763559322134,3.21013527,3079.8,3079.6,4.16648043]
[1763559322330,9.21013527,3079.8,3079.6,1.74107647]
[1763559322541,10.87838291,3079.8,3078.0,0.1385]
[1763559322746,3.2078,3078.6,3078.0,0.66519]
[1763559322946,3.2078,3078.2,3078.1,2.42540396]
[1763559323244,3.73453,3077.8,3075.6,0.1385]
[1763559323436,3.2078,3077.8,3077.4,0.1385]
[1763559323637,0.78939604,3078.2,3078.0,0.52668]
[1763559323841,3.2078,3078.6,3077.9,0.1385]
[1763559324150,0.00487488,3078.4,3078.0,0.52668]
[1763559324338,0.00487488,3078.4,3077.9,0.6652]
[1763559324742,3.2078,3078.1,3077.4,0.14110588]
[1763559325045,3.2078,3078.1,3077.5,0.52677]
[1763559325350,3.2078,3078.1,3077.4,0.14110588]
[1763559325351,3.2078,3078.1,3077.9,0.1472]
[1763559325544,0.05887141,3079.8,3079.3,0.1472]
[1763559325545,3.2078,3079.5,3079.3,0.1472]
[1763559326249,3.2078,3079.5,3079.0,3.2078]
[1763559326848,0.52651,3079.1,3078.9,0.00487488]
[1763559327044,4.87604764,3079.1,3078.9,0.00487488]
[1763559327250,3.2078,3079.1,3078.9,0.00487488]
[1763559327446,3.2078,3079.5,3078.9,0.53141488]
[1763559327645,3.2078,3079.5,3079.3,0.1472]
[1763559328655,4.87604764,3079.5,3078.9,0.00487488]
[1763559328852,3.2078,3079.5,3078.9,0.00487488]
[1763559329149,3.73425,3079.5,3078.9,0.00487488]
[1763559329349,3.2078,3079.5,3078.9,0.53140488]
[1763559329544,3.2078,3079.5,3079.3,0.1472]
[1763559329741,3.2078,3079.5,3078.9,0.00487488]
[1763559329938,3.2078,3079.1,3078.9,0.00487488]
[1763559330146,0.00487488,3079.6,3079.5,0.52644]
[1763559330340,3.2078,3080.0,3079.3,3.355]
[1763559330547,3.2078,3080.4,3080.2,0.52632]
[1763559330743,3.2078,3080.4,3080.0,0.1472]
[1763559330944,3.2078,3080.4,3080.2,0.52631]
[1763559331450,0.00375572,3080.4,3080.2,3.73648145]
[1763559331652,0.00375572,3080.4,3080.2,0.00237145]
[1763559331852,3.2078,3080.3,3080.2,0.00237145]
[1763559333050,14.902,3082.0,3080.2,0.00237145]
[1763559333051,3.2078,3082.4,3080.3,6.0]
[1763559333253,0.52604,3081.9,3081.4,0.1991]
[1763559333552,0.52605,3081.8,3081.4,0.1991]
[1763559333752,1.66824764,3081.5,3080.8,3.2078]
[1763559333947,1.67548693,3081.5,3080.9,0.5262]
[1763559334148,0.52614,3081.3,3080.8,3.73889488]
[1763559334656,0.00723929,3081.5,3081.2,3.2078]
[1763559335151,0.00723929,3081.5,3081.4,0.1991]
[1763559336158,0.88345661,3083.6,3081.4,0.1991]
[1763559336159,1.66824764,3082.7,3081.4,6.1991]
[1763559336348,1.66824764,3082.7,3082.1,0.1991]
[1763559336757,2.19414764,3082.7,3082.1,0.72509]
[1763559336949,3.2078,3082.8,3082.3,3.2078]
[1763559336950,0.52594,3082.5,3082.3,3.2078]
[1763559337157,0.52909195,3082.5,3082.3,3.2078]
[1763559337856,0.00315195,3082.5,3081.9,3.2078]
[1763559338057,0.52608,3081.6,3081.4,3.4069]
[1763559338952,0.52608,3081.6,3081.4,3.2078]
[1763559339152,1.66824764,3082.3,3081.4,3.4069]
[1763559339351,0.52607,3081.7,3081.4,3.4069]
[1763559339558,0.52607,3081.7,3081.4,3.93302]
[1763559340068,1.66824764,3082.3,3081.4,3.4069]
[1763559340354,0.52595,3082.4,3082.1,0.1991]
[1763559340763,0.52596,3082.3,3082.1,0.72509]
[1763559340962,0.52595,3082.4,3082.1,0.72509]
[1763559341260,0.52595,3082.4,3082.0,3.2078]
[1763559341261,0.526,3082.1,3082.0,3.2078]
[1763559341654,0.00315195,3082.5,3082.0,3.2078]
[1763559341853,0.526,3082.1,3082.0,3.2078]
[1763559342961,0.00315195,3082.5,3082.1,0.1991]
[1763559343162,0.52598,3082.2,3082.1,0.1991]
[1763559344052,0.526,3082.1,3082.0,3.2078]
[1763559344260,0.526,3082.1,3082.0,3.5285]
[1763559344464,0.526,3082.1,3082.0,4.05451]
[1763559344761,0.52598,3082.3,3082.0,3.5285]
[1763559344962,0.00315195,3082.5,3082.4,0.3207]
[1763559345174,0.52910195,3082.5,3082.4,3.53120786]
[1763559345466,0.52910195,3082.5,3082.4,3.21050786]
[1763559345864,0.52910195,3082.5,3082.4,0.00270786]
[1763559346262,0.52598,3082.2,3082.1,0.16500786]
[1763559347266,0.52598,3082.2,3082.1,0.16777589]
[1763559349574,0.52598,3082.2,3082.1,0.48847589]
[1763559349773,0.52598,3082.2,3082.1,0.16777589]
[1763559350474,0.52598,3082.2,3082.1,0.48847589]
[1763559350671,0.00315195,3082.5,3082.2,0.3207]
[1763559350971,0.55958,3082.2,3082.1,0.00276803]
[1763559351365,0.52598,3082.2,3082.1,0.00276803]
[1763559351562,0.52598,3082.2,3082.1,0.32346803]
[1763559352168,0.52598,3082.3,3082.2,0.5198]
[1763559352673,0.52908195,3082.5,3082.4,0.3207]
[1763559352875,0.52908195,3082.5,3082.4,3.5285]
[1763559353480,0.00315195,3082.5,3082.4,3.5285]
[1763559353674,3.2078,3083.5,3082.9,0.3207]
[1763559353870,4.87604764,3083.9,3083.0,3.73364]
[1763559354177,0.75027207,3083.8,3083.2,0.3207]
[1763559354378,0.52579,3083.3,3083.2,0.3207]
[1763559354578,0.52976052,3083.3,3083.2,0.3207]
[1763559354776,0.52584,3083.0,3082.9,0.00486634]
[1763559355080,0.52584,3083.0,3082.9,0.32556634]
[1763559355274,0.52978052,3083.3,3083.2,0.3207]
[1763559355485,0.52978052,3083.3,3083.2,3.2078]
[1763559356381,0.52978052,3083.3,3083.2,3.5285]
[1763559357172,0.52978052,3083.3,3083.2,3.2078]
[1763559357783,0.52978052,3083.3,3083.2,3.5285]
[1763559358186,0.56648052,3083.3,3083.2,3.2078]
[1763559359175,0.56648052,3083.3,3082.9,0.00486634]
[1763559359176,0.56254,3083.0,3082.9,0.00486634]
[1763559359584,1.31678788,3083.0,3082.9,0.00486634]
[1763559359784,0.52584,3083.0,3082.9,0.00486634]
[1763559359981,0.0318,3082.8,3082.3,3.2078]
[1763559360179,3.96202338,3083.2,3082.3,3.2078]
[1763559360180,0.52595,3082.4,3082.3,3.5285]
[1763559360982,0.52595,3082.4,3082.3,3.2078]
[1763559360983,1.31301206,3082.4,3082.3,3.2078]
[1763559361180,0.55778,3082.2,3082.0,0.00486634]
[1763559361386,0.52617,3081.1,3080.7,3.2078]
[1763559361578,1.71835365,3082.2,3080.7,3.2078]
[1763559361579,0.52622,3080.8,3080.7,3.2078]
[1763559362080,0.52627,3080.5,3080.4,0.1991]
[1763559362281,1.5884676,3080.5,3080.4,0.00290864]
[1763559362786,1.2842676,3080.5,3080.4,0.00290864]
[1763559363686,4.7962676,3080.5,3080.4,0.00290864]
[1763559363887,1.5884676,3080.5,3080.4,0.00290864]
[1763559364683,1.2842676,3080.5,3080.4,0.65690864]
[1763559364984,0.52885604,3080.5,3080.4,0.65690864]
[1763559365175,0.00258604,3080.5,3080.4,0.65690864]
[1763559366593,1.97503368,3080.5,3080.4,0.00290864]
[1763559366881,2.72880264,3080.5,3080.4,0.00290864]
[1763559367076,0.82766,3080.0,3079.9,3.2078]
[1763559367280,0.52638,3079.9,3079.8,0.654]
[1763559367585,0.52636,3080.0,3079.9,0.4132]
[1763559367784,0.52636,3080.0,3079.8,0.2408]
[1763559367982,0.52633,3080.2,3079.8,0.2408]
[1763559368181,0.00258604,3080.5,3080.4,0.2408]
[1763559368390,0.52885604,3080.5,3080.4,0.654]
[1763559368580,0.52632,3080.2,3080.1,3.2078]
[1763559368782,0.00258604,3080.5,3080.4,0.4132]
[1763559368985,0.00258604,3080.5,3080.4,1.18029]
[1763559369780,0.52885604,3080.5,3080.4,0.2408]
[1763559370188,0.00258604,3080.5,3080.4,0.654]
[1763559370996,0.52632,3080.2,3080.1,3.2078]
[1763559371390,0.82272,3080.2,3080.1,3.2078]
[1763559371997,0.52632,3080.2,3080.1,3.2078]
[1763559372296,0.82272,3080.2,3080.1,3.2078]
[1763559372600,0.52637,3079.9,3079.8,0.00301404]
[1763559372788,2.19461764,3079.9,3079.7,0.00486634]
[1763559372989,3.2078,3079.8,3079.7,0.00486634]
[1763559373583,12.4542,3079.8,3078.8,3.2078]
[1763559373782,0.52658,3078.7,3078.1,3.2078]
[1763559374086,0.52658,3078.7,3078.6,0.00291823]
[1763559374286,0.51218,3078.7,3078.6,0.00291823]
[1763559375294,0.51218,3078.7,3078.3,0.00486634]
[1763559375295,0.52663,3078.4,3078.3,6.34e-06]
[1763559375491,0.52678,3077.5,3077.1,3.2078]
[1763559375691,3.2078,3078.2,3077.9,0.2408]
[1763559375891,3.2078,3078.7,3078.6,0.2408]
[1763559376091,0.00283953,3078.7,3078.6,0.24374912]
[1763559376289,0.00283953,3078.7,3078.6,3.45154912]
[1763559377682,0.00283953,3078.7,3078.6,0.24374912]
[1763559377884,0.00283953,3078.7,3078.1,3.2078]
[1763559377885,0.52666,3078.2,3078.1,3.2078]
[1763559378088,3.2078,3078.6,3078.1,3.2078]
[1763559378289,0.52941953,3078.7,3078.6,0.2408]
[1763559378891,0.00283953,3078.7,3078.6,0.65772119]
[1763559379191,1.95756529,3079.6,3078.6,0.65772119]
[1763559379192,3.2078,3080.4,3079.4,0.4132]
[1763559379389,0.52634,3080.1,3079.7,0.4132]
[1763559379592,0.52634,3080.1,3080.0,0.2408]
[1763559380390,0.52925964,3080.1,3080.0,0.2408]
[1763559381390,0.00291964,3080.1,3080.0,0.2408]
[1763559381998,0.00291964,3080.1,3080.0,3.4486]
[1763559383794,0.00291964,3080.1,3080.0,3.8618]
[1763559383999,0.00291964,3080.1,3080.0,0.2408]
[1763559384301,0.52639,3079.8,3079.7,0.00486634]
[1763559384500,0.52646,3079.4,3079.3,0.2408]
[1763559385593,0.52649,3079.2,3079.1,3.2078]
[1763559386195,0.52658,3078.7,3078.6,0.24452119]
[1763559386400,0.52658,3078.7,3078.6,0.00372119]
[1763559387700,1.95756529,3078.8,3077.8,3.2078]
[1763559387701,0.5267,3078.0,3077.8,3.2078]
[1763559388401,0.00486634,3078.3,3077.8,3.2078]
[1763559388599,0.52668,3078.1,3077.8,3.2078]
[1763559388803,0.52668,3078.1,3077.9,0.24330059]
[1763559389302,0.00486634,3078.3,3078.1,0.52668]
[1763559389599,0.52658,3078.8,3078.6,0.2408]
[1763559389803,3.2078,3079.6,3079.3,0.2408]
[1763559390196,3.21071964,3080.1,3079.4,0.52645]
[1763559390498,3.74192598,3080.1,3080.0,0.2408]
[1763559391201,0.52638,3079.9,3079.4,0.00486634]
[1763559391388,3.21558598,3080.1,3080.0,0.2567]
[1763559391593,3.97064727,3080.1,3080.0,0.2567]
[1763559391792,3.74192598,3080.1,3080.0,0.2567]
[1763559392500,3.97079072,3080.1,3079.4,0.00486634]
[1763559392696,0.52644,3079.5,3079.4,0.00486634]
[1763559393302,3.2078,3079.7,3078.6,0.2408]
[1763559393303,0.52658,3078.7,3078.6,0.2408]
[1763559393499,0.52656,3078.8,3078.6,0.2408]
[1763559394401,0.52659,3078.6,3078.5,3.2078]
[1763559394610,0.52666,3078.2,3078.1,3.2078]
[1763559396005,0.52665,3078.3,3078.1,3.73448]
[1763559396204,0.52666,3078.2,3078.1,3.2078]
[1763559396700,0.5267,3078.0,3077.9,0.00250059]
[1763559396900,0.5267,3078.0,3077.9,0.25660059]
[1763559397712,0.5268,3077.4,3077.3,3.2078]
[1763559397895,9.2078,3078.0,3077.3,3.2078]
[1763559397896,0.52677,3077.6,3077.3,3.2078]
[1763559398101,3.2078,3078.4,3077.3,3.2078]
[1763559398306,0.5268,3077.4,3077.2,0.2541]
[1763559398506,0.5268,3077.4,3077.2,3.4619]
[1763559398698,0.53012988,3077.4,3077.2,0.25704171]
[1763559398908,0.53012988,3077.4,3077.2,3.46484171]
[1763559399197,0.53012988,3077.4,3077.2,3.99166171]
[1763559399399,0.52682,3077.3,3077.2,3.46484171]
[1763559399805,0.52682,3077.3,3077.2,0.25704171]
[1763559400304,0.52682,3077.3,3077.2,0.2541]
[1763559400606,0.00332988,3077.4,3077.2,3.4619]
[1763559400906,1.71835365,3078.3,3077.2,3.4619]
[1763559400907,0.52673,3077.8,3077.4,0.52678]
[1763559401100,0.5267,3078.0,3077.9,0.2541]
[1763559401302,0.00486634,3078.5,3077.9,0.2541]
[1763559401498,0.53148634,3078.5,3078.2,0.52666]
[1763559401810,0.00486634,3078.5,3078.4,0.52663]
[1763559402104,0.52653,3079.0,3078.7,0.52657]
[1763559402302,3.2078,3079.4,3078.6,3.4619]
[1763559402506,0.52649,3079.2,3079.0,0.52652]
[1763559402704,0.52653,3079.0,3078.8,0.52656]
[1763559403105,0.52941233,3079.0,3078.8,0.52656]
[1763559403302,0.00288233,3079.0,3078.9,0.52654]
[1763559403695,0.00487431,3079.2,3079.1,0.52651]
[1763559403900,3.2078,3080.4,3079.5,0.52644]
[1763559404103,3.2078,3080.4,3079.3,0.2541]
[1763559404104,0.75502485,3080.3,3080.0,0.2541]
[1763559404310,0.52632,3080.2,3080.0,0.2541]
[1763559404699,0.00325174,3080.2,3080.0,3.4619]
[1763559404899,0.00325174,3080.2,3080.0,3.98825]
[1763559405099,0.00487431,3080.4,3080.3,0.5263]
[1763559405306,3.2078,3080.8,3080.7,0.2541]
[1763559405998,3.21053001,3080.8,3080.7,0.25679832]
[1763559406601,0.00273001,3080.8,3080.7,0.25679832]
[1763559407015,0.00487431,3081.1,3080.7,0.25679832]
[1763559407016,0.00487431,3081.1,3080.8,0.52622]
[1763559407207,0.00487431,3081.1,3080.9,3.2078]
[1763559407400,0.00487431,3081.1,3080.9,3.734]
[1763559407607,3.2078,3082.1,3081.4,0.2541]
[1763559407801,3.2078,3082.1,3081.5,0.52609]
[1763559408006,0.52602,3082.0,3081.6,0.52608]
[1763559408210,0.52602,3082.0,3081.4,3.4619]
[1763559408414,0.5261,3081.5,3081.4,0.2541]
[1763559408721,3.73389,3081.6,3081.4,0.2541]
[1763559409217,0.53093431,3081.8,3081.4,0.78021]
[1763559409413,0.00487431,3081.8,3081.4,0.78021]
[1763559409604,0.00487431,3081.8,3081.6,3.2078]
[1763559409809,0.00487431,3081.8,3081.6,3.73388]
[1763559410211,0.00416897,3082.1,3081.9,0.52603]
[1763559410405,0.00416897,3082.1,3081.7,0.52605]
[1763559410811,0.52602,3082.0,3081.7,0.52605]
[1763559411212,0.00416897,3082.1,3081.8,0.52605]
[1763559411416,0.5261,3081.5,3081.4,0.2541]
[1763559411612,3.2078,3081.5,3080.7,0.25679832]
[1763559411919,3.2078,3081.9,3081.4,0.2541]
[1763559412115,0.00416897,3082.1,3081.6,3.2078]
[1763559412414,0.52602,3082.0,3081.6,3.2078]
[1763559412717,0.00416897,3082.1,3081.6,3.2078]
[1763559412908,0.00416897,3082.1,3081.8,0.52604]
[1763559413304,0.00416897,3082.1,3081.6,3.2078]
[1763559413509,0.5261,3081.6,3081.4,0.2541]
[1763559415015,3.2078,3081.8,3081.4,0.2541]
[1763559415319,0.5261,3081.5,3081.4,0.2541]
[1763559416020,0.52622,3080.8,3080.7,3.46459832]
[1763559416521,3.2078,3081.3,3080.7,3.46459832]
[1763559416718,3.2078,3081.8,3081.4,0.2541]
[1763559417013,0.00416897,3082.1,3081.4,0.2541]
[1763559417220,0.00416897,3082.1,3081.5,3.2078]
[1763559417418,3.2078,3082.6,3081.5,3.2078]
[1763559417419,0.52597,3082.3,3082.1,0.2541]
[1763559417714,0.52598,3082.2,3082.1,0.2541]
[1763559418309,0.00342361,3082.2,3082.1,0.2541]
[1763559418516,0.52940361,3082.2,3082.1,0.2541]
[1763559418718,0.52940361,3082.2,3082.1,0.7801]
[1763559419212,0.52940361,3082.2,3082.1,0.2541]
[1763559420719,0.52603,3081.9,3081.8,0.00487431]
[1763559421217,3.21122361,3082.2,3081.1,3.2078]
[1763559421414,0.52634,3080.1,3080.0,3.4619]
[1763559421613,0.52634,3080.1,3080.0,0.2541]
[1763559421813,3.2078,3080.7,3080.0,3.4619]
[1763559422010,0.52629,3080.4,3080.0,3.4619]
[1763559422208,3.2078,3080.7,3080.0,3.4619]
[1763559422209,0.52634,3080.1,3080.0,0.2541]
[1763559422411,0.52634,3080.1,3080.0,0.00363769]
[1763559422916,0.52634,3080.1,3080.0,0.24953769]
[1763559423520,0.00487431,3080.5,3080.0,0.24953769]
[1763559423817,0.00487431,3080.5,3080.3,0.5263]
[1763559424017,2.74586557,3081.9,3080.3,0.5263]
[1763559424018,3.2078,3081.9,3080.8,0.2459]
[1763559424213,0.52613,3081.4,3081.2,3.2078]
[1763559425718,0.52612,3081.4,3081.2,3.2078]
[1763559425926,0.5263,3080.3,3080.2,3.2078]
[1763559426520,3.2078,3080.7,3080.0,0.24953769]
[1763559426521,0.52634,3080.1,3080.0,0.24953769]
[1763559428727,0.52634,3080.1,3080.0,0.00363769]
[1763559432129,0.52625,3080.6,3080.0,9.45733769]
[1763559432320,3.2078,3080.7,3080.4,0.52629]
[1763559432521,0.52625,3080.6,3080.5,0.52627]
[1763559433122,0.52627,3080.5,3080.4,0.52628]
[1763559433429,0.52622,3080.8,3080.7,0.2459]
[1763559433939,3.2078,3081.1,3080.7,0.2459]
[1763559434325,3.2078,3081.5,3081.3,0.52613]
[1763559434638,0.52615,3081.2,3081.0,0.52617]
[1763559434929,0.52615,3081.2,3081.1,0.52617]
[1763559435125,0.52613,3081.3,3081.2,0.52615]
[1763559435827,0.52613,3081.3,3081.2,3.73395]
[1763559436027,0.52613,3081.3,3081.2,3.2078]
[1763559436336,0.5292511,3081.6,3081.4,0.77202]
[1763559436536,0.0031511,3081.6,3081.4,0.77202]
[1763559436828,0.0031511,3081.6,3081.5,0.5261]
[1763559437040,0.00342361,3082.2,3082.0,0.52601]
[1763559437041,0.526,3082.1,3082.0,0.52601]
[1763559437222,0.00342361,3082.2,3082.1,0.7719]
[1763559437730,0.00342361,3082.2,3082.1,0.2459]
[1763559438227,0.00342361,3082.2,3082.1,0.7719]
[1763559438422,0.00342361,3082.2,3082.1,0.2459]
[1763559438628,0.00342361,3082.2,3082.1,0.7719]
[1763559440231,0.00342361,3082.2,3081.9,3.2078]
[1763559440631,0.00342361,3082.2,3082.1,0.7719]